[Event "Late-Titled-Tuesday-Blitz-April-30-2024"]
[Site "Chess.com"]
[Date "2024.04.30"]
[Round "2"]
[White "BardArtem"]
[Black "miaou33"]
[Result "1-0"]
[WhiteElo "2785"]
[BlackElo "2545"]
[TimeControl "180+1"]
[EndTime "14:18:31 PDT"]
[Termination "BardArtem won on time"]

1. e4 {[%clk 0:03:00.9]} 1... c5 {[%clk 0:02:55.1]} 2. Nf3 {[%clk 0:02:59.7]}
2... d6 {[%clk 0:02:52.9]} 3. d4 {[%clk 0:02:59.2]} 3... cxd4 {[%clk 0:02:52.3]}
4. Nxd4 {[%clk 0:03:00.1]} 4... Nf6 {[%clk 0:02:48.1]} 5. Nc3 {[%clk 0:03:00]}
5... a6 {[%clk 0:02:43.3]} 6. Bg5 {[%clk 0:02:59.6]} 6... Nbd7 {[%clk
0:02:30.9]} 7. Bc4 {[%clk 0:02:58.6]} 7... Qc7 {[%clk 0:02:19.4]} 8. Bb3 {[%clk
0:02:55.4]} 8... Nc5 {[%clk 0:02:18.4]} 9. O-O {[%clk 0:02:52]} 9... Nxb3 {[%clk
0:02:18.3]} 10. axb3 {[%clk 0:02:51.4]} 10... e6 {[%clk 0:02:18.1]} 11. Bxf6
{[%clk 0:02:48.1]} 11... gxf6 {[%clk 0:02:19]} 12. f4 {[%clk 0:02:48.1]} 12...
h5 {[%clk 0:02:14.5]} 13. f5 {[%clk 0:02:47.8]} 13... e5 {[%clk 0:02:10.9]} 14.
Nf3 {[%clk 0:02:44.2]} 14... b5 {[%clk 0:02:10.1]} 15. Kh1 {[%clk 0:02:32.4]}
15... Bb7 {[%clk 0:02:08]} 16. Nd5 {[%clk 0:02:32.5]} 16... Qd8 {[%clk
0:02:06.7]} 17. c4 {[%clk 0:02:28.5]} 17... Be7 {[%clk 0:02:03.2]} 18. cxb5
{[%clk 0:02:23.9]} 18... axb5 {[%clk 0:02:04.1]} 19. Rxa8 {[%clk 0:02:24]} 19...
Bxa8 {[%clk 0:02:05]} 20. Qd3 {[%clk 0:02:23]} 20... Bc6 {[%clk 0:01:49]} 21.
Rc1 {[%clk 0:02:20.7]} 21... Bd7 {[%clk 0:01:38.8]} 22. Nc7+ {[%clk 0:02:14.1]}
22... Kf8 {[%clk 0:01:38.6]} 23. Nxb5 {[%clk 0:02:14.4]} 23... Qb6 {[%clk
0:01:30.9]} 24. Nc7 {[%clk 0:02:12.8]} 24... h4 {[%clk 0:01:25.1]} 25. Nd5
{[%clk 0:02:11.5]} 25... Qf2 {[%clk 0:01:25.2]} 26. h3 {[%clk 0:01:47]} 26...
Rg8 {[%clk 0:01:22.6]} 27. Rc2 {[%clk 0:01:47.1]} 27... Qa7 {[%clk 0:00:58.4]}
28. Rc7 {[%clk 0:01:18.3]} 28... Qf2 {[%clk 0:00:55.3]} 29. Rc2 {[%clk
0:01:17.5]} 29... Qa7 {[%clk 0:00:54.9]} 30. b4 {[%clk 0:01:12.7]} 30... Bd8
{[%clk 0:00:53.1]} 31. Kh2 {[%clk 0:01:06.3]} 31... Rg3 {[%clk 0:00:50.1]} 32.
Qe3 {[%clk 0:00:54.7]} 32... Qa4 {[%clk 0:00:35.3]} 33. b3 {[%clk 0:00:54]}
33... Qa1 {[%clk 0:00:23.3]} 34. Qh6+ {[%clk 0:00:53.3]} 34... Rg7 {[%clk
0:00:21.9]} 35. Nxf6 {[%clk 0:00:45.8]} 35... Bxf6 {[%clk 0:00:06.7]} 36. Qxf6
{[%clk 0:00:46.7]} 36... Qf1 {[%clk 0:00:06.8]} 37. Qxd6+ {[%clk 0:00:42.2]}
37... Ke8 {[%clk 0:00:05.6]} 38. Qxe5+ {[%clk 0:00:40]} 38... Kf8 {[%clk
0:00:06.1]} 39. Qd6+ {[%clk 0:00:34.2]} 39... Ke8 {[%clk 0:00:05.5]} 40. f6
{[%clk 0:00:28.3]} 40... Rxg2+ {[%clk 0:00:01.9]} 41. Rxg2 {[%clk 0:00:29.2]}
41... Qxg2+ {[%clk 0:00:02]} 42. Kxg2 {[%clk 0:00:29.2]} 42... Bxh3+ {[%clk
0:00:02.9]} 43. Kf2 {[%clk 0:00:29]} 1-0

[Event "Late-Titled-Tuesday-Blitz-April-30-2024"]
[Site "Chess.com"]
[Date "2024.04.30"]
[Round "2"]
[White "SchmakAttack"]
[Black "patzer-reloaded"]
[Result "1-0"]
[WhiteElo "2821"]
[BlackElo "2559"]
[TimeControl "180+1"]
[EndTime "14:18:32 PDT"]
[Termination "SchmakAttack won by resignation"]

1. e4 {[%clk 0:03:00.9]} 1... d6 {[%clk 0:02:59.7]} 2. d4 {[%clk 0:03:00.4]}
2... Nf6 {[%clk 0:02:59.9]} 3. Nc3 {[%clk 0:03:00.7]} 3... g6 {[%clk 0:02:56.8]}
4. g3 {[%clk 0:02:59.6]} 4... Bg7 {[%clk 0:02:56.8]} 5. Bg2 {[%clk 0:03:00.3]}
5... O-O {[%clk 0:02:57]} 6. Nge2 {[%clk 0:03:01]} 6... Nbd7 {[%clk 0:02:54.4]}
7. O-O {[%clk 0:03:00.3]} 7... c5 {[%clk 0:02:53.7]} 8. h3 {[%clk 0:02:57.7]}
8... Rb8 {[%clk 0:02:53.3]} 9. a4 {[%clk 0:02:44]} 9... b6 {[%clk 0:02:50.9]}
10. Be3 {[%clk 0:02:16.9]} 10... a6 {[%clk 0:02:49.5]} 11. d5 {[%clk 0:01:58.6]}
11... b5 {[%clk 0:02:48]} 12. axb5 {[%clk 0:01:59.5]} 12... axb5 {[%clk
0:02:47.9]} 13. Qd2 {[%clk 0:01:58.3]} 13... b4 {[%clk 0:02:45]} 14. Nd1 {[%clk
0:01:58.5]} 14... Nb6 {[%clk 0:02:40.3]} 15. Bh6 {[%clk 0:01:55]} 15... Ne8
{[%clk 0:02:24.4]} 16. Bxg7 {[%clk 0:01:51.8]} 16... Kxg7 {[%clk 0:02:25.3]} 17.
Ne3 {[%clk 0:01:50.8]} 17... Nc7 {[%clk 0:02:23.9]} 18. Ra7 {[%clk 0:01:29]}
18... Nb5 {[%clk 0:01:59.3]} 19. Ra2 {[%clk 0:01:28.8]} 19... Bd7 {[%clk
0:01:40.3]} 20. Rfa1 {[%clk 0:01:23.9]} 20... Qc7 {[%clk 0:01:39.9]} 21. c4
{[%clk 0:01:17.9]} 21... bxc3 {[%clk 0:01:34.8]} 22. bxc3 {[%clk 0:01:18.8]}
22... e5 {[%clk 0:01:13]} 23. dxe6 {[%clk 0:01:08.7]} 23... Bxe6 {[%clk
0:01:11.9]} 24. Ra5 {[%clk 0:00:55.5]} 24... Nc4 {[%clk 0:01:07.4]} 25. Nxc4
{[%clk 0:00:55.3]} 25... Bxc4 {[%clk 0:01:07.8]} 26. Nf4 {[%clk 0:00:55.8]}
26... Qe7 {[%clk 0:00:55.4]} 27. Nd5 {[%clk 0:00:42.5]} 27... Bxd5 {[%clk
0:00:46.5]} 28. exd5 {[%clk 0:00:43.4]} 28... Qf6 {[%clk 0:00:40.2]} 29. Rc1
{[%clk 0:00:35.6]} 29... Rb6 {[%clk 0:00:35.7]} 30. h4 {[%clk 0:00:32.2]} 30...
h5 {[%clk 0:00:34.2]} 31. Ra4 {[%clk 0:00:30.1]} 31... Rfb8 {[%clk 0:00:24]} 32.
Rf4 {[%clk 0:00:28.5]} 32... Qe5 {[%clk 0:00:20.6]} 33. Rf3 {[%clk 0:00:22.7]}
33... Na3 {[%clk 0:00:16.5]} 34. Re1 {[%clk 0:00:14.3]} 34... Rb1 {[%clk
0:00:11.4]} 35. Rxb1 {[%clk 0:00:13.5]} 35... Rxb1+ {[%clk 0:00:10.7]} 36. Kh2
{[%clk 0:00:14]} 36... Qe1 {[%clk 0:00:10.5]} 37. Qf4 {[%clk 0:00:10.9]} 37...
Qe5 {[%clk 0:00:08.4]} 38. Qxf7+ {[%clk 0:00:10.9]} 38... Kh6 {[%clk 0:00:07.9]}
39. Qf8+ {[%clk 0:00:11.1]} 39... Qg7 {[%clk 0:00:08.1]} 40. Qxd6 {[%clk
0:00:11.7]} 40... Nc4 {[%clk 0:00:07.5]} 41. Qf4+ {[%clk 0:00:11.8]} 41... Kh7
{[%clk 0:00:07.1]} 42. Qxc4 {[%clk 0:00:12.7]} 42... Re1 {[%clk 0:00:06.7]} 43.
d6 {[%clk 0:00:12.9]} 43... Rd1 {[%clk 0:00:06.5]} 44. Rf7 {[%clk 0:00:12.9]}
1-0

[Event "Late-Titled-Tuesday-Blitz-April-30-2024"]
[Site "Chess.com"]
[Date "2024.04.30"]
[Round "2"]
[White "toninhojit"]
[Black "ameetghasi100"]
[Result "0-1"]
[WhiteElo "2561"]
[BlackElo "2822"]
[TimeControl "180+1"]
[EndTime "14:18:36 PDT"]
[Termination "ameetghasi100 won by resignation"]

1. e4 {[%clk 0:03:00.9]} 1... d6 {[%clk 0:02:58.2]} 2. d4 {[%clk 0:03:00.4]}
2... g6 {[%clk 0:02:59.1]} 3. Nc3 {[%clk 0:03:00.7]} 3... Bg7 {[%clk 0:02:59.4]}
4. Nf3 {[%clk 0:03:01.3]} 4... Nf6 {[%clk 0:02:58.7]} 5. Be2 {[%clk 0:03:01.7]}
5... O-O {[%clk 0:02:58.5]} 6. h3 {[%clk 0:03:02.1]} 6... Nc6 {[%clk 0:02:58.8]}
7. O-O {[%clk 0:03:02.3]} 7... a6 {[%clk 0:02:58.9]} 8. a4 {[%clk 0:02:55.4]}
8... b6 {[%clk 0:02:58.8]} 9. d5 {[%clk 0:02:55]} 9... Nb4 {[%clk 0:02:52.1]}
10. a5 {[%clk 0:02:50.6]} 10... c6 {[%clk 0:02:41.3]} 11. dxc6 {[%clk
0:02:45.8]} 11... bxa5 {[%clk 0:02:33.1]} 12. Nd4 {[%clk 0:02:14.8]} 12... Qc7
{[%clk 0:02:24]} 13. Bg5 {[%clk 0:02:13.4]} 13... e6 {[%clk 0:02:20.3]} 14. Bf3
{[%clk 0:01:54.8]} 14... Rb8 {[%clk 0:02:08.9]} 15. Qd2 {[%clk 0:01:54.1]} 15...
Ne8 {[%clk 0:01:48.4]} 16. Bh6 {[%clk 0:01:39.7]} 16... Nxc6 {[%clk 0:01:31.4]}
17. Nxc6 {[%clk 0:01:35.2]} 17... Qxc6 {[%clk 0:01:32.3]} 18. Bxg7 {[%clk
0:01:35.6]} 18... Nxg7 {[%clk 0:01:32.2]} 19. b3 {[%clk 0:01:29.7]} 19... Qc7
{[%clk 0:01:27.8]} 20. Ne2 {[%clk 0:01:26.8]} 20... Rb4 {[%clk 0:01:26]} 21. Nc1
{[%clk 0:01:22.3]} 21... Bb7 {[%clk 0:01:22.8]} 22. Nd3 {[%clk 0:01:21.6]} 22...
Rb5 {[%clk 0:01:21.7]} 23. Ra4 {[%clk 0:01:14.8]} 23... Rc8 {[%clk 0:01:18.2]}
24. Rc4 {[%clk 0:01:13.6]} 24... Qd8 {[%clk 0:01:18.2]} 25. Rxc8 {[%clk
0:01:06.9]} 25... Bxc8 {[%clk 0:01:19.1]} 26. Ra1 {[%clk 0:01:06.5]} 26... e5
{[%clk 0:01:05.8]} 27. Nb2 {[%clk 0:01:06.5]} 27... Ne6 {[%clk 0:01:00.2]} 28.
Nc4 {[%clk 0:01:03.8]} 28... Nd4 {[%clk 0:00:58.7]} 29. Bd1 {[%clk 0:01:03.6]}
29... Be6 {[%clk 0:00:58.6]} 30. Nxa5 {[%clk 0:00:57.5]} 30... Qb6 {[%clk
0:00:51]} 31. Kh2 {[%clk 0:00:46.4]} 31... Kg7 {[%clk 0:00:50.4]} 32. Nc4 {[%clk
0:00:25.9]} 32... Bxc4 {[%clk 0:00:50.1]} 33. bxc4 {[%clk 0:00:26.8]} 33... Rc5
{[%clk 0:00:50.5]} 34. c3 {[%clk 0:00:25.7]} 34... Ne6 {[%clk 0:00:50.8]} 35.
Be2 {[%clk 0:00:22.5]} 35... Qc6 {[%clk 0:00:51.2]} 36. f3 {[%clk 0:00:18.6]}
36... Nf4 {[%clk 0:00:47.1]} 37. Bf1 {[%clk 0:00:16.1]} 37... Qb6 {[%clk
0:00:47.5]} 38. Rd1 {[%clk 0:00:15.4]} 38... Rc6 {[%clk 0:00:47.9]} 39. Qa2
{[%clk 0:00:15.2]} 39... Ne6 {[%clk 0:00:46.7]} 40. Rb1 {[%clk 0:00:15.4]} 40...
Qc7 {[%clk 0:00:46.3]} 41. Qd2 {[%clk 0:00:15.3]} 41... Nc5 {[%clk 0:00:46.4]}
42. Qd5 {[%clk 0:00:15.4]} 42... Rb6 {[%clk 0:00:46.7]} 43. Rxb6 {[%clk
0:00:13.2]} 43... Qxb6 {[%clk 0:00:47.6]} 44. h4 {[%clk 0:00:13.7]} 44... h5
{[%clk 0:00:39.7]} 45. Qa8 {[%clk 0:00:13.9]} 45... a5 {[%clk 0:00:39.5]} 46. g4
{[%clk 0:00:12.7]} 46... hxg4 {[%clk 0:00:38.9]} 47. h5 {[%clk 0:00:12.6]} 47...
gxh5 {[%clk 0:00:38.7]} 48. fxg4 {[%clk 0:00:12.3]} 48... hxg4 {[%clk
0:00:38.8]} 49. Qc8 {[%clk 0:00:12]} 49... Ne6 {[%clk 0:00:36.9]} 50. Kg2 {[%clk
0:00:09.3]} 50... Qe3 {[%clk 0:00:35.9]} 51. Qd7 {[%clk 0:00:06.4]} 0-1

[Event "Late-Titled-Tuesday-Blitz-April-30-2024"]
[Site "Chess.com"]
[Date "2024.04.30"]
[Round "2"]
[White "rhwr"]
[Black "NikitaShnadrygin"]
[Result "0-1"]
[WhiteElo "2282"]
[BlackElo "2678"]
[TimeControl "180+1"]
[EndTime "14:18:39 PDT"]
[Termination "NikitaShnadrygin won on time"]

1. e4 {[%clk 0:02:58.9]} 1... c5 {[%clk 0:02:59.7]} 2. Be2 {[%clk 0:02:58.2]}
2... e6 {[%clk 0:02:58.8]} 3. f4 {[%clk 0:02:58]} 3... d5 {[%clk 0:02:57.9]} 4.
d3 {[%clk 0:02:57.5]} 4... dxe4 {[%clk 0:02:57.3]} 5. dxe4 {[%clk 0:02:57.2]}
5... Qxd1+ {[%clk 0:02:58.2]} 6. Bxd1 {[%clk 0:02:57.2]} 6... b6 {[%clk
0:02:58.1]} 7. Nf3 {[%clk 0:02:56]} 7... Bb7 {[%clk 0:02:58.6]} 8. Nbd2 {[%clk
0:02:54.5]} 8... Nc6 {[%clk 0:02:59.2]} 9. c3 {[%clk 0:02:54.5]} 9... Nf6 {[%clk
0:02:54.4]} 10. Bc2 {[%clk 0:02:49.1]} 10... e5 {[%clk 0:02:39.4]} 11. f5 {[%clk
0:02:40]} 11... h6 {[%clk 0:02:36.6]} 12. Nc4 {[%clk 0:02:26.8]} 12... Nd7
{[%clk 0:02:36.4]} 13. a4 {[%clk 0:02:18.5]} 13... a6 {[%clk 0:02:20]} 14. Ke2
{[%clk 0:01:45.9]} 14... b5 {[%clk 0:02:17.9]} 15. axb5 {[%clk 0:01:45.5]} 15...
axb5 {[%clk 0:02:18.8]} 16. Rxa8+ {[%clk 0:01:45]} 16... Bxa8 {[%clk 0:02:19.7]}
17. Ne3 {[%clk 0:01:44.8]} 17... Nb6 {[%clk 0:02:09.1]} 18. Rd1 {[%clk
0:01:38.2]} 18... Be7 {[%clk 0:01:55.1]} 19. Nd5 {[%clk 0:01:37.3]} 19... Bd8
{[%clk 0:01:39]} 20. Be3 {[%clk 0:01:34.2]} 20... Nd7 {[%clk 0:01:26.9]} 21. b4
{[%clk 0:00:48.6]} 21... c4 {[%clk 0:00:52.8]} 22. g4 {[%clk 0:00:36.8]} 22...
Bb7 {[%clk 0:00:50.3]} 23. h4 {[%clk 0:00:35.8]} 23... Ne7 {[%clk 0:00:42]} 24.
g5 {[%clk 0:00:18.5]} 24... Nxd5 {[%clk 0:00:39.6]} 25. exd5 {[%clk 0:00:17.8]}
25... hxg5 {[%clk 0:00:38.7]} 26. hxg5 {[%clk 0:00:14.6]} 26... Rh3 {[%clk
0:00:35.9]} 27. Be4 {[%clk 0:00:13.6]} 27... f6 {[%clk 0:00:21.6]} 28. g6 {[%clk
0:00:12.7]} 28... Bb6 {[%clk 0:00:19.5]} 29. Ra1 {[%clk 0:00:10]} 29... Bxe3
{[%clk 0:00:18.6]} 30. Kxe3 {[%clk 0:00:10.6]} 30... Nb6 {[%clk 0:00:19.4]} 31.
Ra7 {[%clk 0:00:09.1]} 31... Nxd5+ {[%clk 0:00:19.8]} 32. Kd2 {[%clk 0:00:05.3]}
32... Bc6 {[%clk 0:00:16.4]} 33. Rxg7 {[%clk 0:00:04.6]} 33... Rg3 {[%clk
0:00:16.9]} 34. Rg8+ {[%clk 0:00:04.1]} 34... Ke7 {[%clk 0:00:16.7]} 35. Rg7+
{[%clk 0:00:03.9]} 35... Kf8 {[%clk 0:00:15.8]} 36. Rf7+ {[%clk 0:00:04]} 36...
Ke8 {[%clk 0:00:16.4]} 37. Rg7 {[%clk 0:00:03.8]} 37... Rg2+ {[%clk 0:00:16.3]}
38. Ke1 {[%clk 0:00:02.4]} 38... Rg4 {[%clk 0:00:14.2]} 39. Rg8+ {[%clk
0:00:01.4]} 39... Ke7 {[%clk 0:00:13.7]} 40. Rg7+ {[%clk 0:00:01.8]} 40... Kf8
{[%clk 0:00:14.2]} 41. Rf7+ {[%clk 0:00:02.2]} 41... Ke8 {[%clk 0:00:15.1]} 42.
Bxd5 {[%clk 0:00:00.7]} 42... Bxd5 {[%clk 0:00:16]} 0-1

[Event "Late-Titled-Tuesday-Blitz-April-30-2024"]
[Site "Chess.com"]
[Date "2024.04.30"]
[Round "2"]
[White "kalxandria"]
[Black "Lady_Nika"]
[Result "1-0"]
[WhiteElo "2240"]
[BlackElo "2480"]
[TimeControl "180+1"]
[EndTime "14:18:39 PDT"]
[Termination "kalxandria won by resignation"]

1. e4 {[%clk 0:03:00.9]} 1... c5 {[%clk 0:02:51.4]} 2. Nf3 {[%clk 0:02:59.5]}
2... e6 {[%clk 0:02:51.4]} 3. d4 {[%clk 0:02:58.8]} 3... cxd4 {[%clk 0:02:51.6]}
4. Nxd4 {[%clk 0:02:59.7]} 4... a6 {[%clk 0:02:52.5]} 5. c4 {[%clk 0:02:57.1]}
5... Nc6 {[%clk 0:02:52.2]} 6. Nc3 {[%clk 0:02:54.4]} 6... Qc7 {[%clk
0:02:51.2]} 7. Be3 {[%clk 0:02:44.6]} 7... Nf6 {[%clk 0:02:50.2]} 8. Be2 {[%clk
0:02:42.5]} 8... Bb4 {[%clk 0:02:46.9]} 9. Nxc6 {[%clk 0:02:35.2]} 9... dxc6
{[%clk 0:02:34.9]} 10. Qb3 {[%clk 0:02:29.5]} 10... Bxc3+ {[%clk 0:02:33.4]} 11.
Qxc3 {[%clk 0:02:28.8]} 11... Nxe4 {[%clk 0:02:32.4]} 12. Qxg7 {[%clk
0:02:27.6]} 12... Qa5+ {[%clk 0:02:32.4]} 13. Kf1 {[%clk 0:02:24.6]} 13... Rf8
{[%clk 0:02:26.7]} 14. Bh6 {[%clk 0:02:22.9]} 14... Nd2+ {[%clk 0:02:08.2]} 15.
Kg1 {[%clk 0:02:18.9]} 15... Qb4 {[%clk 0:01:52.8]} 16. Qxf8+ {[%clk 0:02:12]}
16... Qxf8 {[%clk 0:01:52.2]} 17. Bxf8 {[%clk 0:02:12.9]} 17... Kxf8 {[%clk
0:01:53.1]} 18. Rd1 {[%clk 0:02:03.7]} 18... Ne4 {[%clk 0:01:51.4]} 19. Rd8+
{[%clk 0:02:02.6]} 19... Ke7 {[%clk 0:01:51.3]} 20. Rh8 {[%clk 0:02:01.8]} 20...
b5 {[%clk 0:01:50.4]} 21. f3 {[%clk 0:01:55.6]} 21... Nf6 {[%clk 0:01:45.7]} 22.
Kf2 {[%clk 0:01:53.4]} 22... Bb7 {[%clk 0:01:34.2]} 23. Rxa8 {[%clk 0:01:52.3]}
23... Bxa8 {[%clk 0:01:35.1]} 24. cxb5 {[%clk 0:01:48.9]} 24... cxb5 {[%clk
0:01:33.4]} 25. b4 {[%clk 0:01:48.2]} 25... Nd5 {[%clk 0:01:32.6]} 26. a3 {[%clk
0:01:47.5]} 26... Bc6 {[%clk 0:01:31.3]} 27. Rc1 {[%clk 0:01:45.1]} 27... Kd6
{[%clk 0:01:30.7]} 28. g3 {[%clk 0:01:43]} 28... h6 {[%clk 0:01:30.2]} 29. f4
{[%clk 0:01:41.5]} 29... Nf6 {[%clk 0:01:26.9]} 30. Bf3 {[%clk 0:01:37.8]} 30...
Bd7 {[%clk 0:01:14.9]} 31. g4 {[%clk 0:01:31.2]} 31... e5 {[%clk 0:01:00.2]} 32.
f5 {[%clk 0:01:26.4]} 32... e4 {[%clk 0:00:58.8]} 33. Be2 {[%clk 0:01:24.8]}
33... Ke5 {[%clk 0:00:58.7]} 34. Rc7 {[%clk 0:01:10]} 34... e3+ {[%clk
0:00:54.9]} 35. Ke1 {[%clk 0:01:06.7]} 35... Kd6 {[%clk 0:00:48]} 36. Ra7 {[%clk
0:01:05.2]} 36... Ke5 {[%clk 0:00:37.1]} 37. Rxa6 {[%clk 0:01:03.8]} 37... Nd5
{[%clk 0:00:27.4]} 38. Rxh6 {[%clk 0:00:50.6]} 38... Nf4 {[%clk 0:00:24.2]} 39.
Rb6 {[%clk 0:00:44.1]} 39... f6 {[%clk 0:00:14.6]} 40. Rxb5+ {[%clk 0:00:39.2]}
40... Kd4 {[%clk 0:00:11.6]} 41. Rb6 {[%clk 0:00:35.3]} 41... Ke5 {[%clk
0:00:07.9]} 42. b5 {[%clk 0:00:33.1]} 42... Be8 {[%clk 0:00:06.9]} 43. Re6+
{[%clk 0:00:29.1]} 43... Nxe6 {[%clk 0:00:05.6]} 44. fxe6 {[%clk 0:00:30]} 44...
Kxe6 {[%clk 0:00:06.5]} 45. a4 {[%clk 0:00:29.2]} 45... Kd5 {[%clk 0:00:06.7]}
46. a5 {[%clk 0:00:29]} 46... Kc5 {[%clk 0:00:06.3]} 47. a6 {[%clk 0:00:28.4]}
47... Kb6 {[%clk 0:00:06.1]} 48. h4 {[%clk 0:00:28.1]} 1-0

[Event "Late-Titled-Tuesday-Blitz-April-30-2024"]
[Site "Chess.com"]
[Date "2024.04.30"]
[Round "2"]
[White "WPWPWP-2015"]
[Black "bubeliang"]
[Result "1-0"]
[WhiteElo "2487"]
[BlackElo "2805"]
[TimeControl "180+1"]
[EndTime "14:18:40 PDT"]
[Termination "WPWPWP-2015 won by checkmate"]

1. e4 {[%clk 0:02:53.8]} 1... c6 {[%clk 0:02:59.6]} 2. Nc3 {[%clk 0:02:50.6]}
2... d5 {[%clk 0:03:00.5]} 3. Nf3 {[%clk 0:02:50.5]} 3... dxe4 {[%clk
0:03:00.8]} 4. Nxe4 {[%clk 0:02:50.2]} 4... Nf6 {[%clk 0:03:01.4]} 5. Nc3 {[%clk
0:02:50.6]} 5... g6 {[%clk 0:03:00.1]} 6. g3 {[%clk 0:02:50.9]} 6... Bg7 {[%clk
0:02:59.9]} 7. Bg2 {[%clk 0:02:51.8]} 7... O-O {[%clk 0:03:00.1]} 8. O-O {[%clk
0:02:52.4]} 8... Nd5 {[%clk 0:02:59]} 9. Re1 {[%clk 0:02:52.1]} 9... Nd7 {[%clk
0:02:58.9]} 10. a4 {[%clk 0:02:41.6]} 10... N7f6 {[%clk 0:02:55.9]} 11. a5
{[%clk 0:02:41.2]} 11... Bg4 {[%clk 0:02:50]} 12. h3 {[%clk 0:02:40.2]} 12...
Nxc3 {[%clk 0:02:38.8]} 13. bxc3 {[%clk 0:02:38.7]} 13... Bxf3 {[%clk
0:02:27.9]} 14. Qxf3 {[%clk 0:02:36.7]} 14... a6 {[%clk 0:02:23.7]} 15. Ra4
{[%clk 0:02:31.9]} 15... e6 {[%clk 0:02:20.3]} 16. c4 {[%clk 0:02:24.7]} 16...
Nd7 {[%clk 0:02:19.5]} 17. d3 {[%clk 0:02:21.1]} 17... Bc3 {[%clk 0:01:39.8]}
18. Rd1 {[%clk 0:02:14.9]} 18... Bxa5 {[%clk 0:01:38.5]} 19. Bb2 {[%clk
0:02:05.9]} 19... Bc7 {[%clk 0:01:37.6]} 20. d4 {[%clk 0:02:01.9]} 20... Qf6
{[%clk 0:01:34.2]} 21. Qb3 {[%clk 0:01:57.4]} 21... Rab8 {[%clk 0:01:21.8]} 22.
h4 {[%clk 0:01:42.7]} 22... h5 {[%clk 0:01:19.5]} 23. Qe3 {[%clk 0:01:25.2]}
23... Rfd8 {[%clk 0:01:16.7]} 24. Ra3 {[%clk 0:01:17.3]} 24... Bb6 {[%clk
0:01:14.7]} 25. c5 {[%clk 0:01:14.1]} 25... Bxc5 {[%clk 0:01:08.3]} 26. dxc5
{[%clk 0:01:07.5]} 26... Qxb2 {[%clk 0:01:07.7]} 27. Rad3 {[%clk 0:01:07.5]}
27... a5 {[%clk 0:00:45.5]} 28. Rxd7 {[%clk 0:01:06.7]} 28... Rxd7 {[%clk
0:00:46.4]} 29. Rxd7 {[%clk 0:01:06.5]} 29... a4 {[%clk 0:00:45]} 30. Qf4 {[%clk
0:00:45.1]} 30... Qa1+ {[%clk 0:00:45]} 31. Kh2 {[%clk 0:00:43]} 31... Rf8
{[%clk 0:00:45.5]} 32. Rxb7 {[%clk 0:00:40.5]} 32... a3 {[%clk 0:00:45.6]} 33.
Ra7 {[%clk 0:00:39.9]} 33... Qb2 {[%clk 0:00:31.3]} 34. Qa4 {[%clk 0:00:38.7]}
34... Rd8 {[%clk 0:00:25.1]} 35. Qxa3 {[%clk 0:00:33.9]} 35... Qxc2 {[%clk
0:00:25.1]} 36. Qf3 {[%clk 0:00:32.9]} 36... Rf8 {[%clk 0:00:18.6]} 37. Qe3
{[%clk 0:00:32]} 37... Rd8 {[%clk 0:00:16.3]} 38. Bxc6 {[%clk 0:00:29.8]} 38...
Rd2 {[%clk 0:00:16.1]} 39. Kg2 {[%clk 0:00:29.4]} 39... Rd8 {[%clk 0:00:10.8]}
40. Be4 {[%clk 0:00:26.4]} 40... Qd1 {[%clk 0:00:10.4]} 41. Bf3 {[%clk
0:00:25.4]} 41... Qc2 {[%clk 0:00:10]} 42. c6 {[%clk 0:00:24.7]} 42... Rd3
{[%clk 0:00:07.5]} 43. Qf4 {[%clk 0:00:21.5]} 43... f5 {[%clk 0:00:02.7]} 44.
Qe5 {[%clk 0:00:20]} 44... Rxf3 {[%clk 0:00:01.4]} 45. Qg7# {[%clk 0:00:19.3]}
1-0

[Event "Late-Titled-Tuesday-Blitz-April-30-2024"]
[Site "Chess.com"]
[Date "2024.04.30"]
[Round "2"]
[White "wannabe2700"]
[Black "superchess02"]
[Result "0-1"]
[WhiteElo "2573"]
[BlackElo "2856"]
[TimeControl "180+1"]
[EndTime "14:18:47 PDT"]
[Termination "superchess02 won by resignation"]

1. b3 {[%clk 0:03:00.9]} 1... d5 {[%clk 0:02:55]} 2. Bb2 {[%clk 0:03:01.8]} 2...
c5 {[%clk 0:02:54.6]} 3. e3 {[%clk 0:03:01.8]} 3... a6 {[%clk 0:02:50.8]} 4. f4
{[%clk 0:03:01.7]} 4... Nc6 {[%clk 0:02:49.4]} 5. Be2 {[%clk 0:03:02]} 5... d4
{[%clk 0:02:45.5]} 6. Nf3 {[%clk 0:03:00.8]} 6... g6 {[%clk 0:02:45.7]} 7. Na3
{[%clk 0:02:59.8]} 7... Bg7 {[%clk 0:02:45.3]} 8. Nc4 {[%clk 0:03:00]} 8... b5
{[%clk 0:02:35.3]} 9. Nce5 {[%clk 0:03:00]} 9... Bb7 {[%clk 0:02:35.9]} 10. O-O
{[%clk 0:02:55.9]} 10... Nh6 {[%clk 0:02:35]} 11. Nxc6 {[%clk 0:02:54.7]} 11...
Bxc6 {[%clk 0:02:35.9]} 12. Ne5 {[%clk 0:02:55.2]} 12... Rc8 {[%clk 0:02:07.6]}
13. Nxc6 {[%clk 0:02:48.4]} 13... Rxc6 {[%clk 0:02:08.5]} 14. Bf3 {[%clk
0:02:48.3]} 14... Rd6 {[%clk 0:02:05.5]} 15. e4 {[%clk 0:02:48.3]} 15... e5
{[%clk 0:02:01.5]} 16. f5 {[%clk 0:02:28.5]} 16... Qg5 {[%clk 0:01:45.4]} 17. a4
{[%clk 0:02:26.3]} 17... O-O {[%clk 0:01:38.8]} 18. axb5 {[%clk 0:02:25.7]}
18... axb5 {[%clk 0:01:39.7]} 19. Ra5 {[%clk 0:02:25.9]} 19... Rb8 {[%clk
0:01:34.6]} 20. Qe2 {[%clk 0:02:25.6]} 20... gxf5 {[%clk 0:01:33.1]} 21. Rxb5
{[%clk 0:02:22.4]} 21... Rc8 {[%clk 0:01:20.2]} 22. exf5 {[%clk 0:02:14.2]}
22... d3 {[%clk 0:01:18.4]} 23. cxd3 {[%clk 0:02:13.1]} 23... e4 {[%clk
0:01:18.5]} 24. Bxg7 {[%clk 0:01:57.6]} 24... exf3 {[%clk 0:01:18.4]} 25. Rxf3
{[%clk 0:01:58.5]} 25... Nxf5 {[%clk 0:01:16.6]} 26. Be5 {[%clk 0:01:04.8]}
26... Re6 {[%clk 0:01:12]} 27. Qe4 {[%clk 0:01:04.7]} 27... Ng7 {[%clk
0:01:05.6]} 28. d4 {[%clk 0:01:01.5]} 28... cxd4 {[%clk 0:01:00.8]} 29. Rg3
{[%clk 0:00:57.8]} 29... Rc1+ {[%clk 0:01:00.1]} 30. Kf2 {[%clk 0:00:57.7]}
30... Qxd2+ {[%clk 0:01:00.1]} 31. Qe2 {[%clk 0:00:56.9]} 31... Qxe2+ {[%clk
0:00:39.1]} 32. Kxe2 {[%clk 0:00:57.8]} 32... f6 {[%clk 0:00:31.3]} 33. Rb8+
{[%clk 0:00:56.5]} 33... Kf7 {[%clk 0:00:31.9]} 34. Kd2 {[%clk 0:00:51.8]} 34...
fxe5 {[%clk 0:00:18.9]} 35. Rb7+ {[%clk 0:00:49]} 35... Kf6 {[%clk 0:00:18.4]}
36. Kxc1 {[%clk 0:00:31]} 36... Nf5 {[%clk 0:00:18.4]} 37. Rg8 {[%clk
0:00:28.9]} 37... Rc6+ {[%clk 0:00:17.7]} 38. Kd2 {[%clk 0:00:27.8]} 38... e4
{[%clk 0:00:18.1]} 39. Rf8+ {[%clk 0:00:27.4]} 39... Kg6 {[%clk 0:00:13.7]} 40.
g4 {[%clk 0:00:15.4]} 40... e3+ {[%clk 0:00:14.1]} 41. Kd3 {[%clk 0:00:14.4]}
41... Rc3+ {[%clk 0:00:14.3]} 42. Ke2 {[%clk 0:00:12.4]} 42... Rc2+ {[%clk
0:00:09.7]} 43. Kd3 {[%clk 0:00:11]} 43... Rd2+ {[%clk 0:00:09.3]} 0-1